fUSD/lending_fUSD_20241107
["ID","MTS","AMOUNT","RATE_DAILY","PERIOD"]
[341542847,1730971156125,-500.0,0.0003041,4]
[341542848,1730971156150,-500.0,0.0003041,4]
[341542849,1730971156176,-1331.41,0.0003041,4]
[341542850,1730971156200,-500.0,0.0003041,4]
[341542851,1730971156223,-500.0,0.0003041,4]
[341542852,1730971156246,-500.0,0.0003041,4]
[341542853,1730971156269,-500.0,0.0003041,4]
[341542854,1730971156295,-926.29,0.0003041,4]
[341542855,1730971156320,-572.76,0.0003041,4]
[341542856,1730971156345,-2170.0,0.0003041,4]
[341542857,1730971156370,-500.0,0.0003041,4]
[341542858,1730971156395,-500.0,0.0003041,4]
[341542859,1730971156421,-500.0,0.0003041,4]
[341542860,1730971156445,-2425.13,0.0003041,4]
[341542861,1730971156469,-500.0,0.0003041,4]
[341542862,1730971156492,-500.0,0.0003041,4]
[341542863,1730971156515,-2877.0,0.0003041,4]
[341542864,1730971156537,-500.0,0.0003041,4]
[341542865,1730971156561,-500.0,0.0003041,4]
[341542866,1730971156585,-2938.97,0.0003041,4]
[341542867,1730971156609,-2201.29,0.0003041,4]
[341542868,1730971156633,-500.0,0.0003041,4]
[341542869,1730971156659,-1170.84,0.0003041,4]
[341542870,1730971156685,-870.92,0.0003041,4]
[341542871,1730971156709,-500.0,0.0003041,4]
[341542872,1730971156733,-500.0,0.0003041,4]
[341542873,1730971156758,-500.0,0.0003041,4]
[341542874,1730971156782,-559.17,0.0003041,4]
[341542875,1730971156806,-500.0,0.0003041,4]
[341542876,1730971156830,-1566.82,0.0003041,4]
[341542877,1730971156853,-500.0,0.0003041,4]
[341542878,1730971156876,-1554.1,0.0003041,4]
[341542879,1730971156899,-670.46,0.0003041,4]
[341542880,1730971156926,-1189.48,0.0003041,4]
[341542881,1730971156951,-500.0,0.0003041,4]
[341542882,1730971156975,-500.0,0.0003041,4]
[341542883,1730971156999,-500.0,0.0003041,4]
[341542884,1730971157024,-500.0,0.0003041,4]
[341542885,1730971157048,-522.44185899,0.0003041,4]
[341542886,1730971157072,-1485.64,0.0003041,4]
[341542887,1730971157096,-734.3,0.0003041,4]
[341542888,1730971157120,-500.0,0.0003041,4]
[341542889,1730971157150,-500.0,0.0003041,4]
[341542890,1730971157176,-500.0,0.0003041,4]
[341542891,1730971157200,-718.11,0.0003041,4]
[341542892,1730971157225,-241.02754156,0.0003041,4]
[341542893,1730971157249,-500.0,0.0003041,4]
[341542894,1730971157274,-798.51,0.0003041,4]
[341542895,1730971157307,-641.08,0.0003041,4]
[341542896,1730971157333,-404.2303365,0.0003041,4]
[341542897,1730971157360,-500.0,0.0003041,4]
[341542898,1730971157386,-2631.4,0.0003041,4]
[341542899,1730971157410,-500.0,0.0003041,4]
[341542900,1730971157436,-500.0,0.0003041,4]
[341542901,1730971157459,-689.35,0.0003041,4]
[341542902,1730971157483,-1209.11,0.0003041,4]
[341542903,1730971157506,-500.0,0.0003041,4]
[341542904,1730971157529,-500.0,0.0003041,4]
[341542905,1730971157551,-766.69,0.0003041,4]
[341542906,1730971157573,-1805.21,0.0003041,4]
[341542907,1730971157595,-500.0,0.0003041,4]
[341542908,1730971157618,-500.0,0.0003041,4]
[341542909,1730971157641,-759.22,0.0003041,4]
[341542910,1730971157664,-500.0,0.0003041,4]
[341542911,1730971157694,-536.27,0.0003041,4]
[341542912,1730971157717,-500.0,0.0003041,4]
[341542913,1730971157739,-824.7,0.0003041,4]
[341542914,1730971157762,-511.08,0.0003041,4]
[341542915,1730971157785,-4493.53,0.0003041,4]
[341542916,1730971157807,-819.09,0.0003041,4]
[341542917,1730971157829,-1413.47,0.0003041,4]
[341542918,1730971157851,-500.0,0.0003041,4]
[341542919,1730971157873,-500.0,0.0003041,4]
[341542920,1730971157896,-500.0,0.0003041,4]
[341542921,1730971157920,-911.27,0.0003041,4]
[341542922,1730971157942,-746.88,0.0003041,4]
[341542923,1730971157965,-1390.29,0.0003041,4]
[341542924,1730971157988,-500.0,0.0003041,4]
[341542925,1730971158011,-501.3,0.0003041,4]
[341542926,1730971158034,-500.0,0.0003041,4]
[341542927,1730971158058,-863.62,0.0003041,4]
[341542928,1730971158081,-2017.58,0.0003041,4]
[341542929,1730971158106,-500.0,0.0003041,4]
[341542930,1730971158131,-712.85,0.0003041,4]
[341542931,1730971158156,-719.81,0.0003041,4]
[341542932,1730971158182,-676.0752,0.0003041,2]
[341542933,1730971158205,-1462.54,0.0003041,4]
[341542934,1730971158229,-500.0,0.0003041,4]
[341542935,1730971158253,-500.0,0.0003041,4]
[341542936,1730971158277,-500.0,0.0003041,4]
[341542937,1730971158306,-500.0,0.0003041,4]
[341542938,1730971158331,-500.0,0.0003041,4]
[341542939,1730971158354,-569.5,0.0003041,4]
[341542940,1730971158380,-604.67,0.0003041,4]
[341542941,1730971158403,-1679.0,0.0003041,4]
[341542942,1730971158428,-569.77503611,0.0003041,4]
[341542943,1730971158451,-853.07,0.0003041,4]
[341542944,1730971158473,-500.0,0.0003041,4]
[341542945,1730971158496,-500.0,0.0003041,4]
[341542946,1730971158519,-568.94,0.0003041,4]
[341542947,1730971158543,-807.78,0.0003041,4]
[341542948,1730971158566,-500.0,0.0003041,4]
[341542949,1730971158590,-500.0,0.0003041,4]
[341542950,1730971158613,-500.0,0.0003041,4]
[341542951,1730971158637,-1046.26,0.0003041,4]
[341542952,1730971158660,-500.0,0.0003041,4]
[341542953,1730971158686,-515.22,0.0003041,4]
[341542954,1730971158708,-500.0,0.0003041,4]
[341542955,1730971158732,-500.0,0.0003041,4]
[341542956,1730971158755,-1656.98,0.0003041,4]
[341542957,1730971158779,-1632.08,0.0003041,4]
[341542958,1730971158804,-500.0,0.0003041,4]
[341542959,1730971158830,-2560.24,0.0003041,4]
[341542960,1730971158853,-500.0,0.0003041,4]
[341542961,1730971158878,-852.47,0.0003041,4]
[341542962,1730971158901,-500.0,0.0003041,4]
[341542963,1730971158926,-500.0,0.0003041,4]
[341542964,1730971158950,-500.0,0.0003041,4]
[341542965,1730971158974,-500.0,0.0003041,4]
[341542966,1730971159138,-540.23,0.0003041,4]
[341542967,1730971159165,-2079.096,0.0003041,26]
[341542968,1730971159191,-733.56,0.0003041,4]
[341542969,1730971159215,-500.0,0.0003041,4]
[341542970,1730971159240,-1634.25,0.0003041,4]
[341542971,1730971159265,-500.0,0.0003041,4]
[341542972,1730971159294,-1608.52,0.0003041,4]
[341542973,1730971159318,-500.0,0.0003041,4]
[341542974,1730971159344,-500.0,0.0003041,4]
[341542975,1730971159370,-750.71,0.0003041,4]
[341542976,1730971159395,-500.0,0.0003041,4]
[341542977,1730971159421,-500.0,0.0003041,4]
[341542978,1730971159446,-500.0,0.0003041,4]
[341542979,1730971159471,-2020.93,0.0003041,4]
[341542980,1730971159496,-3967.8,0.0003041,4]
[341542981,1730971159520,-4701.52,0.0003041,4]
[341542982,1730971159544,-694.43,0.0003041,4]
[341542983,1730971159567,-500.0,0.0003041,4]
[341542984,1730971159591,-500.0,0.0003041,4]
[341542985,1730971159614,-500.0,0.0003041,4]
[341542986,1730971159636,-193.62271327,0.0003041,4]
[341542987,1730971159660,-2451.86,0.0003041,4]
[341542988,1730971159684,-662.46,0.0003041,4]
[341542989,1730971159706,-500.0,0.0003041,4]
[341542990,1730971159729,-500.0,0.0003041,4]
[341542991,1730971159752,-642.08,0.0003041,4]
[341542992,1730971159775,-808.86,0.0003041,4]
[341542993,1730971159797,-150.0,0.00030413,2]
[341542994,1730971159821,-150.0,0.00030419,2]
[341542995,1730971159845,-150.0,0.00030428,2]
[341542996,1730971159869,-150.0,0.00030433,2]
[341542997,1730971159893,-150.0,0.0003044,2]
[341542998,1730971159917,-150.0,0.00030446,2]
[341542999,1730971159941,-150.0,0.00030453,2]
[341543000,1730971159966,-150.0,0.00030455,2]
[341543001,1730971159991,-150.0,0.00030455,2]
[341543002,1730971160015,-150.0,0.00030457,2]
[341543003,1730971160037,-150.0,0.00030471,2]
[341543004,1730971160060,-500.0,0.00030473,5]
[341543005,1730971160083,-500.0,0.00030473,5]
[341543006,1730971160104,-500.0,0.00030473,5]
[341543007,1730971160129,-150.0,0.00030483,2]
[341543008,1730971160155,-150.0,0.00030494,2]
[341543009,1730971160181,-150.0,0.00030497,2]
[341543010,1730971160203,-150.01,0.00030499,2]
[341543011,1730971160226,-684.92276105,0.00030499,2]
[341543012,1730971160248,-500.0,0.00030499,4]
[341543013,1730971160270,-1023.767179,0.000305,2]
[341543014,1730971160297,-150.0,0.00030501,2]
[341543015,1730971160322,-150.0,0.0003051,2]
[341543016,1730971160346,-150.0,0.00030512,2]
[341543017,1730971160375,-150.0,0.00030518,2]
[341543018,1730971160399,-150.0,0.00030522,2]
[341543019,1730971160423,-230.57549243,0.00030533,2]
[341543020,1730971160446,-150.0,0.00030542,2]
[341543021,1730971160468,-224.99752713,0.00030552,2]
[341543022,1730971160492,-150.0,0.00030561,2]
[341543023,1730971160515,-150.0,0.00030566,2]
[341543024,1730971160538,-150.0,0.00030574,2]
[341543025,1730971160563,-150.0,0.0003058,2]
[341543026,1730971160586,-150.0,0.00030582,2]
[341543027,1730971160609,-220.0,0.00030584,2]
[341543028,1730971160635,-398.0,0.000306,15]
[341543029,1730971160658,-196.0,0.000306,15]
[341543030,1730971160683,-501.745759,0.000306,4]
[341543031,1730971160704,-150.0,0.00030628,2]
[341543032,1730971160728,-150.0,0.00030633,2]
[341543033,1730971160753,-150.0,0.00030649,2]
[341543034,1730971160775,-494.72226223,0.00030673,5]
[341543035,1730971160799,-150.0,0.00030679,2]
[341543036,1730971160823,-150.0,0.0003068,2]
[341543037,1730971160846,-150.0,0.00030682,2]
[341543038,1730971160869,-500.0,0.00030683,4]
[341543039,1730971160891,-500.0,0.00030683,4]
[341543040,1730971160914,-500.0,0.00030683,4]
[341543041,1730971160938,-500.0,0.00030683,4]
[341543042,1730971160961,-688.94,0.00030683,4]
[341543043,1730971160984,-688.94,0.00030683,4]
[341543044,1730971161007,-500.0,0.00030683,4]
[341543045,1730971161030,-500.0,0.00030683,4]
[341543046,1730971161055,-115155.6591263,0.00030684,7]
[341543047,1730971161078,-3948.91518139,0.00030684,7]
[341543048,1730971161100,-500.0,0.00030684,4]
[341543049,1730971161124,-200.0,0.00030684,4]
[341543050,1730971161149,-500.0,0.00030684,4]
[341543051,1730971161173,-500.0,0.00030684,4]
[341543052,1730971161197,-633.13,0.00030684,4]
[341543053,1730971161220,-500.0,0.00030684,4]
[341543054,1730971161243,-500.0,0.00030684,4]
[341543055,1730971161265,-500.0,0.00030684,4]
[341543056,1730971161290,-500.0,0.00030684,4]
[341543057,1730971161313,-500.0,0.00030684,4]
[341543058,1730971161337,-500.0,0.00030684,4]
[341543059,1730971161360,-500.0,0.00030684,4]
[341543060,1730971161385,-500.0,0.00030684,4]
[341543061,1730971161407,-500.0,0.00030684,4]
[341543062,1730971161431,-500.0,0.00030684,4]
[341543063,1730971161455,-500.0,0.00030684,4]
[341543064,1730971161479,-500.0,0.00030684,4]
[341543065,1730971161502,-500.0,0.00030684,4]
[341543066,1730971161524,-500.0,0.00030684,4]
[341543067,1730971161547,-500.0,0.00030684,4]
[341543068,1730971161569,-730.59,0.00030684,4]
[341543069,1730971161593,-500.0,0.00030684,4]
[341543070,1730971161617,-500.0,0.00030684,4]
[341543071,1730971161643,-500.0,0.00030684,4]
[341543072,1730971161941,-500.0,0.00030684,4]
[341543073,1730971161967,-500.0,0.00030684,4]
[341543074,1730971161992,-500.0,0.00030684,4]
[341543075,1730971162016,-500.0,0.00030684,4]
[341543076,1730971162041,-300.0,0.00030684,4]
[341543077,1730971162065,-500.0,0.00030684,4]
[341543078,1730971162090,-500.0,0.00030684,4]
[341543079,1730971162115,-500.0,0.00030684,4]
[341543080,1730971162140,-500.0,0.00030684,4]
[341543081,1730971162166,-500.0,0.00030684,4]
[341543082,1730971162189,-500.0,0.00030684,4]
[341543083,1730971162212,-500.0,0.00030684,4]
[341543084,1730971162235,-500.0,0.00030684,4]
[341543085,1730971162258,-500.0,0.00030684,4]
[341543086,1730971162282,-500.0,0.00030684,4]
[341543087,1730971162310,-537.66,0.00030684,4]
[341543088,1730971162333,-500.0,0.00030684,4]
[341543089,1730971162355,-774.89,0.00030684,4]
[341543090,1730971162378,-500.0,0.00030684,4]
[341543091,1730971162401,-500.0,0.00030684,4]
[341543092,1730971162423,-500.0,0.00030684,4]
[341543093,1730971162446,-500.0,0.00030684,4]
[341543094,1730971162469,-687.97,0.00030684,4]
[341543095,1730971162491,-500.0,0.00030684,4]
[341543096,1730971162513,-500.0,0.00030684,4]
[341543097,1730971162535,-500.0,0.00030684,4]
[341543098,1730971162558,-500.0,0.00030684,4]
[341543099,1730971162580,-500.0,0.00030684,4]
[341543100,1730971162602,-500.0,0.00030684,4]
[341543101,1730971162625,-682.28,0.00030684,4]
[341543102,1730971162648,-500.0,0.00030684,4]
[341543103,1730971162673,-500.0,0.00030684,4]
[341543104,1730971162695,-500.0,0.00030684,4]
[341543105,1730971162718,-500.0,0.00030684,4]
[341543106,1730971162740,-500.0,0.00030684,4]
[341543107,1730971162762,-500.0,0.00030684,4]
[341543108,1730971162785,-749.9,0.00030684,4]
[341543109,1730971162808,-500.0,0.00030684,4]
[341543110,1730971162830,-500.0,0.00030684,4]
[341543111,1730971162853,-500.0,0.00030684,4]
[341543112,1730971162876,-500.0,0.00030684,4]
[341543113,1730971162898,-500.0,0.00030684,4]
[341543114,1730971162922,-749.72,0.00030684,4]
[341543115,1730971162946,-500.0,0.00030684,4]
[341543116,1730971162969,-500.0,0.00030684,4]
[341543117,1730971162994,-500.0,0.00030684,4]
[341543118,1730971163017,-712.67,0.00030684,4]
[341543119,1730971163040,-597.48,0.00030684,4]
[341543120,1730971163073,-500.0,0.00030684,4]
[341543121,1730971163106,-500.0,0.00030684,4]
[341543122,1730971163139,-500.0,0.00030684,4]
[341543123,1730971163173,-500.0,0.00030684,4]
[341543124,1730971163204,-500.0,0.00030684,4]
[341543125,1730971163235,-500.0,0.00030684,4]
[341543126,1730971163266,-500.0,0.00030684,4]
[341543127,1730971163298,-500.0,0.00030684,4]
[341543128,1730971163330,-500.0,0.00030684,4]
[341543129,1730971163364,-500.0,0.00030684,4]
[341543130,1730971163395,-646.88,0.00030684,4]
[341543131,1730971163428,-500.0,0.00030684,4]
[341543132,1730971163460,-500.0,0.00030684,4]
[341543133,1730971163492,-500.0,0.00030684,4]
[341543134,1730971163524,-500.0,0.00030684,4]
[341543135,1730971163554,-500.0,0.00030684,4]
[341543136,1730971163585,-500.0,0.00030684,4]
[341543137,1730971163616,-605.59,0.00030684,4]
[341543138,1730971163647,-500.0,0.00030684,4]
[341543139,1730971163678,-613.29,0.00030684,4]
[341543140,1730971163708,-500.0,0.00030684,4]
[341543141,1730971163738,-500.0,0.00030684,4]
[341543142,1730971163768,-500.0,0.00030684,4]
[341543143,1730971163799,-1693.8,0.00030684,4]
[341543144,1730971163829,-500.0,0.00030684,4]
[341543145,1730971163858,-553.05,0.00030684,4]
[341543146,1730971163888,-500.0,0.00030684,4]
[341543147,1730971163920,-500.0,0.00030684,4]
[341543148,1730971163950,-500.0,0.00030684,4]
[341543149,1730971163981,-500.0,0.00030684,4]
[341543150,1730971164010,-500.0,0.00030684,4]
[341543151,1730971164040,-500.0,0.00030684,4]
[341543152,1730971164071,-500.0,0.00030684,4]
[341543153,1730971164105,-828.97,0.00030684,4]
[341543154,1730971164138,-500.0,0.00030684,4]
[341543155,1730971164171,-1212.05,0.00030684,4]
[341543156,1730971164203,-500.0,0.00030684,4]
[341543157,1730971164236,-500.0,0.00030684,4]
[341543158,1730971164269,-2353.59,0.00030684,4]
[341543159,1730971164301,-500.0,0.00030684,4]
[341543160,1730971164333,-639.58,0.00030684,4]
[341543161,1730971164366,-743.73,0.00030684,4]
[341543162,1730971164396,-1330.84,0.00030684,4]
[341543163,1730971164428,-2834.07,0.00030684,4]
[341543164,1730971164459,-500.0,0.00030684,4]
[341543165,1730971164490,-1423.99,0.00030684,4]
[341543166,1730971164522,-500.0,0.00030684,4]
[341543167,1730971164554,-509.16,0.00030684,4]
[341543168,1730971164644,-638.18,0.00030684,4]
[341543169,1730971164677,-500.0,0.00030684,4]
[341543170,1730971164706,-610.62,0.00030684,4]
[341543171,1730971164735,-500.0,0.00030684,4]
[341543172,1730971164765,-500.0,0.00030684,4]
[341543173,1730971164795,-500.0,0.00030684,4]
[341543174,1730971164825,-1854.85,0.00030684,4]
[341543175,1730971164855,-500.0,0.00030684,4]
[341543176,1730971164885,-500.0,0.00030684,4]
[341543177,1730971164917,-1449.94,0.00030684,4]
[341543178,1730971164949,-787.38,0.00030684,4]
[341543179,1730971164980,-1171.99,0.00030684,4]
[341543180,1730971165010,-500.0,0.00030684,4]
[341543181,1730971165040,-781.37,0.00030684,4]
[341543182,1730971165071,-500.0,0.00030684,4]
[341543183,1730971165102,-1275.55,0.00030684,4]
[341543184,1730971165135,-500.0,0.00030684,4]
[341543185,1730971165170,-993.68,0.00030684,4]
[341543186,1730971165204,-639.7458694,0.00030684,4]
[341543187,1730971165234,-327.94085337,0.00030684,4]
[341543188,1730971165265,-500.0,0.00030684,4]
[341543189,1730971165297,-583.04,0.00030684,4]
[341543190,1730971165329,-1246.86,0.00030684,4]
[341543191,1730971165361,-858.15,0.00030684,4]
[341543192,1730971165391,-1995.43,0.00030684,4]
[341543193,1730971165426,-500.0,0.00030684,4]
[341543194,1730971165456,-590.73159006,0.00030684,4]
[341543195,1730971165486,-500.0,0.00030684,4]
[341543196,1730971165515,-500.0,0.00030684,4]
[341543197,1730971165545,-500.0,0.00030684,4]
[341543198,1730971165575,-512.97,0.00030684,4]
[341543199,1730971165604,-500.0,0.00030684,4]
[341543200,1730971165635,-500.0,0.00030684,4]
[341543201,1730971165665,-500.0,0.00030684,4]
[341543202,1730971165695,-657.21,0.00030684,4]
[341543203,1730971165724,-935.04,0.00030684,4]
[341543204,1730971165754,-500.0,0.00030684,4]
[341543205,1730971165782,-500.0,0.00030684,4]
[341543206,1730971165812,-519.06,0.00030684,4]
[341543207,1730971165840,-500.0,0.00030684,4]
[341543208,1730971165869,-1447.91,0.00030684,4]
[341543209,1730971165899,-500.0,0.00030684,4]
[341543210,1730971165929,-500.0,0.00030684,4]
[341543211,1730971165960,-500.0,0.00030684,4]
[341543212,1730971165991,-500.0,0.00030684,4]
[341543213,1730971166021,-741.6,0.00030684,4]
[341543214,1730971166053,-566.35,0.00030684,4]
[341543215,1730971166083,-1679.11,0.00030684,4]
[341543216,1730971166113,-557.0,0.00030684,4]
[341543217,1730971166145,-1728.46,0.00030684,4]
[341543218,1730971166177,-500.0,0.00030684,4]
[341543219,1730971166207,-500.0,0.00030684,4]
[341543220,1730971166237,-500.0,0.00030684,4]
[341543221,1730971166268,-500.0,0.00030684,4]
[341543222,1730971166310,-500.0,0.00030684,4]
[341543223,1730971166342,-617.36,0.00030684,4]
[341543224,1730971166373,-500.0,0.00030684,4]
[341543225,1730971166404,-500.0,0.00030684,4]
[341543226,1730971166435,-526.82,0.00030684,4]
[341543227,1730971166466,-500.0,0.00030684,4]
[341543228,1730971166497,-523.29,0.00030684,4]
[341543229,1730971166528,-500.0,0.00030684,4]
[341543230,1730971166558,-500.0,0.00030684,4]
[341543231,1730971166588,-607.39,0.00030684,4]
[341543232,1730971166619,-1111.38,0.00030684,4]
[341543233,1730971166651,-500.0,0.00030684,4]
[341543234,1730971166685,-500.0,0.00030684,4]
[341543235,1730971166716,-1230.57,0.00030684,4]
[341543236,1730971166746,-500.0,0.00030684,4]
[341543237,1730971166777,-500.0,0.00030684,4]
[341543238,1730971166806,-648.65,0.00030684,4]
[341543239,1730971166835,-921.78,0.00030684,4]
[341543240,1730971166865,-500.0,0.00030684,4]
[341543241,1730971166894,-896.22,0.00030684,4]
[341543242,1730971166923,-500.0,0.00030684,4]
[341543243,1730971166954,-514.19,0.00030684,4]
[341543244,1730971166983,-1162.82,0.00030684,4]
[341543245,1730971167011,-500.0,0.00030684,4]
[341543246,1730971167041,-1322.61,0.00030684,4]
[341543247,1730971167071,-978.58,0.00030684,4]
[341543248,1730971167101,-574.33,0.00030684,4]
[341543249,1730971167131,-500.0,0.00030684,4]
[341543250,1730971167164,-1387.23,0.00030684,4]
[341543251,1730971167195,-546.96,0.00030684,4]
[341543252,1730971167225,-500.0,0.00030684,4]
[341543253,1730971167256,-622.68041659,0.00030684,4]
[341543254,1730971167286,-941.3,0.00030684,4]
[341543255,1730971167321,-505.11,0.00030684,4]
[341543256,1730971167353,-1716.07,0.00030684,4]
[341543257,1730971167384,-595.44,0.00030684,4]
[341543258,1730971167415,-691.74,0.00030684,4]
[341543259,1730971167450,-500.0,0.00030684,4]
[341543260,1730971167484,-500.0,0.00030684,4]
[341543261,1730971167514,-1075.73,0.00030684,4]
[341543262,1730971167546,-500.0,0.00030684,4]
[341543263,1730971167579,-500.0,0.00030684,4]
[341543264,1730971167613,-1022.46,0.00030684,4]
[341543265,1730971167643,-964.98,0.00030684,4]
[341543266,1730971167675,-500.0,0.00030684,4]
[341543267,1730971167705,-500.0,0.00030684,4]
[341543268,1730971167734,-525.75,0.00030684,4]
[341543269,1730971167765,-500.0,0.00030684,4]
[341543270,1730971167795,-1411.52,0.00030684,4]
[341543271,1730971167824,-500.0,0.00030684,4]
[341543272,1730971167856,-500.0,0.00030684,4]
[341543273,1730971167888,-505.18,0.00030684,4]
[341543274,1730971167921,-1567.13,0.00030684,4]
[341543275,1730971167954,-500.0,0.00030684,4]
[341543276,1730971167986,-576.19,0.00030684,4]
[341543277,1730971168017,-1080.04,0.00030684,4]
[341543278,1730971168050,-500.0,0.00030684,4]
[341543279,1730971168083,-516.41644115,0.00030684,4]
[341543280,1730971168114,-909.29,0.00030684,4]
[341543281,1730971168148,-500.0,0.00030684,4]
[341543282,1730971168183,-1159.29,0.00030684,4]
[341543283,1730971168215,-500.0,0.00030684,4]
[341543284,1730971168252,-500.0,0.00030684,4]
[341543285,1730971168288,-1126.49,0.00030684,4]
[341543286,1730971168322,-1252.43,0.00030684,4]
[341543287,1730971168356,-586.04,0.00030684,4]
[341543288,1730971168389,-1119.55,0.00030684,4]
[341543289,1730971168420,-923.87,0.00030684,4]
[341543290,1730971168452,-500.0,0.00030684,4]
[341543291,1730971168483,-500.0,0.00030684,4]
[341543292,1730971168513,-500.0,0.00030684,4]
[341543293,1730971168543,-574.61,0.00030684,4]
[341543294,1730971168572,-912.57,0.00030684,4]
[341543295,1730971168603,-534.9,0.00030684,4]
[341543296,1730971168633,-512.04,0.00030684,4]
[341543297,1730971168663,-500.0,0.00030684,4]
[341543298,1730971168694,-500.0,0.00030684,4]
[341543299,1730971168724,-580.86,0.00030684,4]
[341543300,1730971168753,-500.0,0.00030684,4]
[341543301,1730971168783,-500.0,0.00030684,4]
[341543302,1730971168815,-1131.82,0.00030684,4]
[341543303,1730971168847,-500.0,0.00030684,4]
[341543304,1730971168879,-1160.03,0.00030684,4]
[341543305,1730971168911,-151.0,0.00030684,7]
[341543306,1730971168943,-774.27,0.00030684,4]
[341543307,1730971168975,-500.0,0.00030684,4]
[341543308,1730971169007,-576.76,0.00030684,4]
[341543309,1730971169040,-500.0,0.00030684,4]
[341543310,1730971169072,-500.0,0.00030684,4]
[341543311,1730971169104,-1245.7,0.00030684,4]
[341543312,1730971169137,-500.0,0.00030684,4]
[341543313,1730971169172,-1103.85,0.00030684,4]
[341543314,1730971169203,-560.55,0.00030684,4]
[341543315,1730971169233,-500.0,0.00030684,4]
[341543316,1730971169264,-500.0,0.00030684,4]
[341543317,1730971169296,-500.0,0.00030684,4]
[341543318,1730971169327,-500.0,0.00030684,4]
[341543319,1730971169479,-529.13,0.00030684,4]
[341543320,1730971169511,-500.0,0.00030684,4]
[341543321,1730971169541,-1022.29,0.00030684,4]
[341543322,1730971169572,-924.17,0.00030684,4]
[341543323,1730971169602,-1236.48,0.00030684,4]
[341543324,1730971169632,-500.0,0.00030684,4]
[341543325,1730971169661,-500.0,0.00030684,4]
[341543326,1730971169691,-500.0,0.00030684,4]
[341543327,1730971169720,-500.0,0.00030684,4]
[341543328,1730971169749,-500.0,0.00030684,4]
[341543329,1730971169778,-1296.88,0.00030684,4]
[341543330,1730971169812,-695.29,0.00030684,4]
[341543331,1730971169843,-1468.11,0.00030684,4]
[341543332,1730971169874,-500.0,0.00030684,4]
[341543333,1730971169905,-864.94,0.00030684,4]
[341543334,1730971169938,-500.0,0.00030684,4]
[341543335,1730971169969,-532.61,0.00030684,4]
[341543336,1730971170000,-500.0,0.00030684,4]
[341543337,1730971170031,-627.27,0.00030684,4]
[341543338,1730971170061,-500.0,0.00030684,4]
[341543339,1730971170093,-500.0,0.00030684,4]
[341543340,1730971170128,-500.0,0.00030684,4]
[341543341,1730971170168,-500.0,0.00030684,4]
[341543342,1730971170202,-540.92,0.00030684,4]
[341543343,1730971170236,-900.87,0.00030684,4]
[341543344,1730971170270,-516.06,0.00030684,4]
[341543345,1730971170306,-500.0,0.00030684,4]
[341543346,1730971170342,-500.0,0.00030684,4]